[Event "*** Titled Tuesday Blitz"]
[Site "Chess.com"]
[Date "2019.05.07"]
[Round "8"]
[White "Jenia84"]
[Black "slowdumbb"]
[Result "1-0"]
[WhiteElo "2253"]
[BlackElo "2392"]
[TimeControl "180+2"]
[EndTime "14:55:42 PDT"]
[Termination "Jenia84 won by resignation"]

1. e4 {[%clk 0:02:56.5]} 1... c5 {[%clk 0:03:00.9]} 2. Nf3 {[%clk 0:02:56.8]}
2... Nc6 {[%clk 0:03:02.1]} 3. d4 {[%clk 0:02:57.8]} 3... cxd4 {[%clk 0:03:04]}
4. Nxd4 {[%clk 0:02:59]} 4... e5 {[%clk 0:03:05.6]} 5. Nb5 {[%clk 0:02:58.9]}
5... a6 {[%clk 0:03:06.9]} 6. Nd6+ {[%clk 0:02:56.7]} 6... Bxd6 {[%clk
0:03:08.4]} 7. Qxd6 {[%clk 0:02:56.6]} 7... Qe7 {[%clk 0:03:10.3]} 8. Qd3 {[%clk
0:02:54.4]} 8... Nf6 {[%clk 0:03:10.6]} 9. c3 {[%clk 0:02:53.9]} 9... O-O {[%clk
0:03:11]} 10. Be2 {[%clk 0:02:52]} 10... Rd8 {[%clk 0:03:11.6]} 11. Bg5 {[%clk
0:02:50.2]} 11... h6 {[%clk 0:03:12.8]} 12. Bxf6 {[%clk 0:02:50.8]} 12... Qxf6
{[%clk 0:03:14.7]} 13. Nd2 {[%clk 0:02:51.5]} 13... d6 {[%clk 0:03:13.8]} 14.
O-O {[%clk 0:02:49.5]} 14... Be6 {[%clk 0:03:15.3]} 15. c4 {[%clk 0:02:33.7]}
15... Rac8 {[%clk 0:03:08.4]} 16. b3 {[%clk 0:02:28.8]} 16... b5 {[%clk
0:02:56.4]} 17. Rac1 {[%clk 0:02:27.9]} 17... Nd4 {[%clk 0:02:51.3]} 18. Qe3
{[%clk 0:02:17.4]} 18... b4 {[%clk 0:01:51.8]} 19. Rfd1 {[%clk 0:02:05.9]} 19...
a5 {[%clk 0:01:34.1]} 20. Nf3 {[%clk 0:02:01.8]} 20... Nxe2+ {[%clk 0:01:34.2]}
21. Qxe2 {[%clk 0:02:02.5]} 21... Bg4 {[%clk 0:01:36.1]} 22. Rd5 {[%clk
0:02:00.4]} 22... Rc5 {[%clk 0:01:33.7]} 23. Rcd1 {[%clk 0:01:59.1]} 23... Rxd5
{[%clk 0:01:32.3]} 24. Rxd5 {[%clk 0:01:59.5]} 24... Ra8 {[%clk 0:01:31.2]} 25.
h3 {[%clk 0:01:58.6]} 25... Bh5 {[%clk 0:01:26.7]} 26. Qd3 {[%clk 0:01:55]}
26... Ra6 {[%clk 0:01:19.3]} 27. c5 {[%clk 0:01:53.8]} 27... dxc5 {[%clk
0:01:18.2]} 28. Nxe5 {[%clk 0:01:46.8]} 28... Re6 {[%clk 0:01:13.1]} 29. Qg3
{[%clk 0:01:14.5]} 29... Qe7 {[%clk 0:00:53.8]} 30. Rd7 {[%clk 0:00:55.7]} 30...
Qf6 {[%clk 0:00:34.3]} 31. f4 {[%clk 0:00:54.6]} 31... Rd6 {[%clk 0:00:28.2]}
32. Rxd6 {[%clk 0:00:50.7]} 32... Qxd6 {[%clk 0:00:30.1]} 33. Qe3 {[%clk
0:00:50.7]} 33... Bd1 {[%clk 0:00:21.4]} 34. Nc4 {[%clk 0:00:48.8]} 34... Qc7
{[%clk 0:00:17.4]} 35. e5 {[%clk 0:00:48.9]} 35... a4 {[%clk 0:00:17.9]} 36. Qd3
{[%clk 0:00:47.1]} 36... Bh5 {[%clk 0:00:15.2]} 37. bxa4 {[%clk 0:00:46.2]}
37... Kf8 {[%clk 0:00:12.1]} 38. a5 {[%clk 0:00:46]} 38... Bg6 {[%clk
0:00:09.8]} 39. Qd2 {[%clk 0:00:28.9]} 39... Bf5 {[%clk 0:00:09.3]} 40. a6
{[%clk 0:00:28.8]} 40... Be6 {[%clk 0:00:08.5]} 41. Qd3 {[%clk 0:00:22.5]} 41...
Ke8 {[%clk 0:00:08.6]} 42. Nd6+ {[%clk 0:00:21.1]} 42... Ke7 {[%clk 0:00:09.1]}
43. Qb5 {[%clk 0:00:20.1]} 43... Bd7 {[%clk 0:00:08.4]} 44. Qb7 {[%clk
0:00:20.9]} 44... Qa5 {[%clk 0:00:07]} 45. a7 {[%clk 0:00:21.3]} 45... Qa3
{[%clk 0:00:08.2]} 46. Nc8+ {[%clk 0:00:21.9]} 46... Ke6 {[%clk 0:00:08.9]} 47.
a8=Q {[%clk 0:00:21.8]} 47... Qe3+ {[%clk 0:00:09.3]} 48. Kh2 {[%clk 0:00:22.8]}
48... Qxf4+ {[%clk 0:00:10.2]} 49. Kh1 {[%clk 0:00:23.9]} 49... Qc1+ {[%clk
0:00:09]} 50. Kh2 {[%clk 0:00:25]} 50... Qf4+ {[%clk 0:00:10.9]} 51. Kg1 {[%clk
0:00:26.2]} 51... Qe3+ {[%clk 0:00:11.9]} 52. Kf1 {[%clk 0:00:27.2]} 52... Qc1+
{[%clk 0:00:11.9]} 53. Ke2 {[%clk 0:00:27.8]} 53... Qc2+ {[%clk 0:00:12.7]} 54.
Ke3 {[%clk 0:00:28.2]} 54... Qc3+ {[%clk 0:00:14.1]} 55. Ke2 {[%clk 0:00:28.9]}
55... Qc4+ {[%clk 0:00:13.7]} 56. Kf3 {[%clk 0:00:28.9]} 56... Qd3+ {[%clk
0:00:13.1]} 57. Kf2 {[%clk 0:00:28.8]} 57... Qd4+ {[%clk 0:00:14.4]} 58. Kg3
{[%clk 0:00:28.8]} 58... Qxe5+ {[%clk 0:00:12.5]} 59. Kf2 {[%clk 0:00:28.5]}
59... Qd4+ {[%clk 0:00:13.5]} 60. Kf3 {[%clk 0:00:26.6]} 60... Qc3+ {[%clk
0:00:13.7]} 61. Ke2 {[%clk 0:00:21.5]} 61... Qc2+ {[%clk 0:00:09.8]} 62. Ke1
{[%clk 0:00:21.6]} 62... Qc1+ {[%clk 0:00:10.3]} 63. Kf2 {[%clk 0:00:22.6]}
63... Qb2+ {[%clk 0:00:09.7]} 64. Kg1 {[%clk 0:00:20.7]} 64... Qc1+ {[%clk
0:00:10.8]} 65. Kh2 {[%clk 0:00:21.5]} 65... Qf4+ {[%clk 0:00:12.3]} 66. g3
{[%clk 0:00:22.6]} 66... Qc4 {[%clk 0:00:11.8]} 67. Qe4+ {[%clk 0:00:22.5]}
67... Qxe4 {[%clk 0:00:12.9]} 68. Qxe4+ {[%clk 0:00:23.9]} 1-0

[Event "*** Titled Tuesday Blitz"]
[Site "Chess.com"]
[Date "2019.05.07"]
[Round "8"]
[White "Walter_White_Poland"]
[Black "norwaytoadog"]
[Result "1/2-1/2"]
[WhiteElo "2285"]
[BlackElo "2250"]
[TimeControl "180+2"]
[EndTime "14:55:45 PDT"]
[Termination "Game drawn by agreement"]

1. e4 {[%clk 0:03:01.9]} 1... e5 {[%clk 0:03:00.4]} 2. Nf3 {[%clk 0:03:02.8]}
2... Nc6 {[%clk 0:03:01.6]} 3. Bb5 {[%clk 0:03:03.5]} 3... a6 {[%clk 0:03:03.2]}
4. Ba4 {[%clk 0:03:04.6]} 4... Nf6 {[%clk 0:03:04.5]} 5. O-O {[%clk 0:03:05.6]}
5... Be7 {[%clk 0:03:05.8]} 6. Re1 {[%clk 0:03:06.6]} 6... b5 {[%clk 0:03:07.2]}
7. Bb3 {[%clk 0:03:07.5]} 7... d6 {[%clk 0:03:08.6]} 8. c3 {[%clk 0:03:08.4]}
8... O-O {[%clk 0:03:09.7]} 9. h3 {[%clk 0:03:09.4]} 9... Bb7 {[%clk 0:03:10.8]}
10. d4 {[%clk 0:03:09.2]} 10... Re8 {[%clk 0:03:12]} 11. a4 {[%clk 0:03:07.7]}
11... h6 {[%clk 0:03:02.8]} 12. Nbd2 {[%clk 0:03:07.1]} 12... Bf8 {[%clk
0:02:46.6]} 13. Bc2 {[%clk 0:02:34.4]} 13... exd4 {[%clk 0:02:45]} 14. cxd4
{[%clk 0:02:35.2]} 14... Nb4 {[%clk 0:02:46.2]} 15. Bb1 {[%clk 0:02:35.8]} 15...
c5 {[%clk 0:02:47.3]} 16. d5 {[%clk 0:02:36.5]} 16... c4 {[%clk 0:02:48]} 17.
Ra3 {[%clk 0:02:09.3]} 17... Nd7 {[%clk 0:02:43.9]} 18. Nd4 {[%clk 0:01:44]}
18... Nc5 {[%clk 0:02:30.9]} 19. axb5 {[%clk 0:01:37.2]} 19... axb5 {[%clk
0:02:27.7]} 20. Nxb5 {[%clk 0:01:25.6]} 20... Rxa3 {[%clk 0:01:57.7]} 21. Nxa3
{[%clk 0:01:20.3]} 21... Nbd3 {[%clk 0:01:36.1]} 22. Re3 {[%clk 0:01:13.3]}
22... Qh4 {[%clk 0:01:08.7]} 23. g3 {[%clk 0:00:50.3]} 23... Qxh3 {[%clk
0:01:04]} 24. Naxc4 {[%clk 0:00:50.2]} 24... Nxf2 {[%clk 0:00:47.9]} 25. Kxf2
{[%clk 0:00:50.2]} 25... Qh2+ {[%clk 0:00:47.1]} 26. Ke1 {[%clk 0:00:41]} 26...
Qg1+ {[%clk 0:00:36.6]} 27. Nf1 {[%clk 0:00:41]} 27... Ba6 {[%clk 0:00:21.2]}
28. b3 {[%clk 0:00:29.7]} 28... Rb8 {[%clk 0:00:19.9]} 29. Bc2 {[%clk
0:00:22.7]} 29... Be7 {[%clk 0:00:17.6]} 30. Qf3 {[%clk 0:00:14.8]} 30... Bg5
{[%clk 0:00:17.6]} 31. Qf2 {[%clk 0:00:11.6]} 31... Qh1 {[%clk 0:00:14.4]} 32.
Kd1 {[%clk 0:00:07.4]} 32... Bxe3 {[%clk 0:00:14.6]} 33. Bxe3 {[%clk 0:00:08.2]}
33... Nxb3 {[%clk 0:00:14.8]} 34. Bxb3 {[%clk 0:00:08.8]} 34... Rxb3 {[%clk
0:00:15.9]} 35. Nd2 {[%clk 0:00:07.1]} 35... Ra3 {[%clk 0:00:15.9]} 36. Kc2
{[%clk 0:00:07.6]} 36... Ra2+ {[%clk 0:00:15.9]} 37. Kb3 {[%clk 0:00:07.8]}
37... Ra1 {[%clk 0:00:16.7]} 38. Kb2 {[%clk 0:00:06]} 38... Rxf1 {[%clk
0:00:16.7]} 39. Nxf1 {[%clk 0:00:06.8]} 39... Bxf1 {[%clk 0:00:17.4]} 40. Qf4
{[%clk 0:00:04.8]} 40... Bd3 {[%clk 0:00:17.8]} 41. Qxd6 {[%clk 0:00:04.1]}
41... Qb1+ {[%clk 0:00:18.5]} 42. Kc3 {[%clk 0:00:04.7]} 42... Qc2+ {[%clk
0:00:19.3]} 43. Kb4 {[%clk 0:00:03.9]} 43... Qc4+ {[%clk 0:00:19.9]} 44. Ka3
{[%clk 0:00:03.7]} 44... Bc2 {[%clk 0:00:20.6]} 45. Qb8+ {[%clk 0:00:03.5]}
45... Kh7 {[%clk 0:00:21.5]} 46. Qb4 {[%clk 0:00:04.1]} 46... Qa6+ {[%clk
0:00:21.3]} 47. Kb2 {[%clk 0:00:04.5]} 47... Qd3 {[%clk 0:00:22.3]} 48. Qd4
{[%clk 0:00:04.2]} 48... Qxd4+ {[%clk 0:00:22.8]} 49. Bxd4 {[%clk 0:00:04.8]}
49... Bxe4 {[%clk 0:00:24.3]} 50. d6 {[%clk 0:00:06.1]} 50... Bc6 {[%clk
0:00:25.4]} 51. Kc3 {[%clk 0:00:07]} 51... Kg6 {[%clk 0:00:26]} 52. Kd2 {[%clk
0:00:07.9]} 52... f5 {[%clk 0:00:27.4]} 53. Ke2 {[%clk 0:00:08.2]} 53... Kf7
{[%clk 0:00:28.7]} 54. Kf2 {[%clk 0:00:08.5]} 54... g5 {[%clk 0:00:29.8]} 55.
Ke3 {[%clk 0:00:09.2]} 55... Ke6 {[%clk 0:00:30.9]} 56. Bg7 {[%clk 0:00:09.6]}
56... h5 {[%clk 0:00:29.5]} 57. Bf8 {[%clk 0:00:10.5]} 57... Kd7 {[%clk
0:00:30.1]} 58. Be7 {[%clk 0:00:11.3]} 58... g4 {[%clk 0:00:28.8]} 59. Kf4
{[%clk 0:00:11.8]} 59... Be4 {[%clk 0:00:29.7]} 60. Bf8 {[%clk 0:00:12.1]} 60...
Ke6 {[%clk 0:00:30.5]} 61. Be7 {[%clk 0:00:12.9]} 61... Bd3 {[%clk 0:00:29.9]}
62. Bf8 {[%clk 0:00:13.6]} 62... Bc2 {[%clk 0:00:30.8]} 63. Kg5 {[%clk 0:00:14]}
63... Kd7 {[%clk 0:00:30.8]} 64. Kxh5 {[%clk 0:00:14.5]} 64... Ke6 {[%clk
0:00:31.1]} 65. Kg5 {[%clk 0:00:15.4]} 65... Kd7 {[%clk 0:00:30.9]} 66. Kf4
{[%clk 0:00:15.3]} 66... Ke6 {[%clk 0:00:30.2]} 1/2-1/2

[Event "*** Titled Tuesday Blitz"]
[Site "Chess.com"]
[Date "2019.05.07"]
[Round "8"]
[White "jacky72"]
[Black "cherryandmint"]
[Result "1/2-1/2"]
[WhiteElo "2641"]
[BlackElo "2692"]
[TimeControl "180+2"]
[EndTime "14:55:54 PDT"]
[Termination "Game drawn - insufficient material"]

1. d4 {[%clk 0:03:01.9]} 1... Nf6 {[%clk 0:02:55.2]} 2. c4 {[%clk 0:03:03.1]}
2... e6 {[%clk 0:02:57.1]} 3. Nf3 {[%clk 0:03:03.8]} 3... d5 {[%clk 0:02:59]} 4.
Nc3 {[%clk 0:03:04.4]} 4... c5 {[%clk 0:02:59.1]} 5. cxd5 {[%clk 0:03:05.3]}
5... Nxd5 {[%clk 0:03:01]} 6. e4 {[%clk 0:03:05.6]} 6... Nxc3 {[%clk 0:03:02.2]}
7. bxc3 {[%clk 0:03:07.5]} 7... cxd4 {[%clk 0:03:04.1]} 8. cxd4 {[%clk
0:03:09.4]} 8... Bb4+ {[%clk 0:03:05.1]} 9. Bd2 {[%clk 0:03:11.3]} 9... Bxd2+
{[%clk 0:03:06.7]} 10. Qxd2 {[%clk 0:03:13.2]} 10... O-O {[%clk 0:03:08.3]} 11.
Bc4 {[%clk 0:03:14.7]} 11... Nd7 {[%clk 0:03:09.7]} 12. O-O {[%clk 0:03:16]}
12... b6 {[%clk 0:03:11.3]} 13. Rad1 {[%clk 0:03:17.5]} 13... Bb7 {[%clk
0:03:12.4]} 14. d5 {[%clk 0:03:18.9]} 14... exd5 {[%clk 0:03:08.3]} 15. Bxd5
{[%clk 0:03:20.8]} 15... Nc5 {[%clk 0:03:08.3]} 16. Qf4 {[%clk 0:03:12.5]} 16...
Qe7 {[%clk 0:03:08.8]} 17. Bxb7 {[%clk 0:03:09.8]} 17... Qxb7 {[%clk 0:03:08.5]}
18. e5 {[%clk 0:03:11.2]} 18... Rad8 {[%clk 0:03:05.6]} 19. Ng5 {[%clk
0:02:51.9]} 19... h6 {[%clk 0:03:03]} 20. Nf3 {[%clk 0:02:49.7]} 20... Rd5
{[%clk 0:02:44.7]} 21. Qc4 {[%clk 0:02:24.4]} 21... Rfd8 {[%clk 0:02:42.6]} 22.
Rb1 {[%clk 0:02:23.7]} 22... Qd7 {[%clk 0:02:11.9]} 23. h3 {[%clk 0:02:22.6]}
23... Qa4 {[%clk 0:02:03.8]} 24. Rb4 {[%clk 0:02:11.9]} 24... Qa3 {[%clk
0:02:02.6]} 25. Rbb1 {[%clk 0:02:10.1]} 25... Qd3 {[%clk 0:02:02.7]} 26. Qh4
{[%clk 0:02:05.8]} 26... Qc2 {[%clk 0:01:54.6]} 27. a3 {[%clk 0:01:59.5]} 27...
Qe4 {[%clk 0:01:49.4]} 28. Qxe4 {[%clk 0:01:55.7]} 28... Nxe4 {[%clk 0:01:51.3]}
29. Rfe1 {[%clk 0:01:55.5]} 29... Nc5 {[%clk 0:01:50.5]} 30. Re3 {[%clk
0:01:52.8]} 30... g5 {[%clk 0:01:49.7]} 31. Kh2 {[%clk 0:01:48.7]} 31... Kg7
{[%clk 0:01:50.3]} 32. Rb4 {[%clk 0:01:40.4]} 32... Kg6 {[%clk 0:01:47.7]} 33.
h4 {[%clk 0:01:39.6]} 33... Rd3 {[%clk 0:01:48.1]} 34. Rxd3 {[%clk 0:01:33.4]}
34... Nxd3 {[%clk 0:01:41.8]} 35. Ra4 {[%clk 0:01:34.7]} 35... Nxf2 {[%clk
0:01:31.4]} 36. hxg5 {[%clk 0:01:36.1]} 36... hxg5 {[%clk 0:01:32.1]} 37. Rxa7
{[%clk 0:01:32.7]} 37... Ne4 {[%clk 0:00:44.7]} 38. Rb7 {[%clk 0:01:27]} 38...
g4 {[%clk 0:00:44.7]} 39. Rxb6+ {[%clk 0:01:23.1]} 39... Kf5 {[%clk 0:00:45.5]}
40. Nh4+ {[%clk 0:01:20.1]} 40... Kg5 {[%clk 0:00:42.8]} 41. Rb4 {[%clk
0:01:06.7]} 41... Nc3 {[%clk 0:00:30.5]} 42. g3 {[%clk 0:01:01.4]} 42... Rd2+
{[%clk 0:00:24.5]} 43. Kg1 {[%clk 0:00:56.2]} 43... Ne2+ {[%clk 0:00:20.4]} 44.
Kf2 {[%clk 0:00:57.5]} 44... Nxg3+ {[%clk 0:00:17.3]} 45. Kxg3 {[%clk
0:00:47.8]} 45... Rd3+ {[%clk 0:00:18.3]} 46. Kf2 {[%clk 0:00:44.6]} 46... Kxh4
{[%clk 0:00:19.7]} 47. Rf4 {[%clk 0:00:41.5]} 47... Kh3 {[%clk 0:00:20]} 48.
Rxf7 {[%clk 0:00:41]} 48... g3+ {[%clk 0:00:21.3]} 49. Ke2 {[%clk 0:00:35.9]}
49... Rd5 {[%clk 0:00:20.2]} 50. Rh7+ {[%clk 0:00:35]} 50... Kg2 {[%clk
0:00:21.3]} 51. Rh5 {[%clk 0:00:35.1]} 51... Kg1 {[%clk 0:00:20.7]} 52. Kf3
{[%clk 0:00:34.7]} 52... Rd3+ {[%clk 0:00:10.7]} 53. Ke4 {[%clk 0:00:34.5]}
53... Rxa3 {[%clk 0:00:11.8]} 54. e6 {[%clk 0:00:34.6]} 54... Kf2 {[%clk
0:00:12.6]} 55. Rf5+ {[%clk 0:00:28.1]} 55... Ke2 {[%clk 0:00:13.8]} 56. Rg5
{[%clk 0:00:28.2]} 56... Kf2 {[%clk 0:00:14.7]} 57. Rf5+ {[%clk 0:00:23.7]}
57... Ke2 {[%clk 0:00:15.2]} 58. Rg5 {[%clk 0:00:17.2]} 58... Re3+ {[%clk
0:00:16.1]} 59. Kd5 {[%clk 0:00:17.9]} 59... Kf2 {[%clk 0:00:17.5]} 60. Kd6
{[%clk 0:00:15]} 60... g2 {[%clk 0:00:18.4]} 61. e7 {[%clk 0:00:14.7]} 61...
Rd3+ {[%clk 0:00:19.4]} 62. Kc7 {[%clk 0:00:15.3]} 62... Rc3+ {[%clk 0:00:20.3]}
63. Kd8 {[%clk 0:00:16.2]} 63... Rd3+ {[%clk 0:00:21.7]} 64. Kc8 {[%clk
0:00:17.4]} 64... Rc3+ {[%clk 0:00:22.7]} 65. Kd7 {[%clk 0:00:18.5]} 65... Rd3+
{[%clk 0:00:24.2]} 66. Ke6 {[%clk 0:00:19.2]} 66... Re3+ {[%clk 0:00:25.6]} 67.
Kf7 {[%clk 0:00:18]} 67... Rf3+ {[%clk 0:00:26.8]} 68. Ke6 {[%clk 0:00:18.8]}
68... Re3+ {[%clk 0:00:28]} 69. Kd6 {[%clk 0:00:19.7]} 69... Rd3+ {[%clk
0:00:29.3]} 70. Ke6 {[%clk 0:00:20.7]} 70... Re3+ {[%clk 0:00:30.5]} 71. Kd7
{[%clk 0:00:21.8]} 71... g1=Q {[%clk 0:00:31.4]} 72. Rxg1 {[%clk 0:00:21.5]}
72... Kxg1 {[%clk 0:00:33.3]} 73. Kd8 {[%clk 0:00:22.9]} 73... Kf2 {[%clk
0:00:30.2]} 74. e8=Q {[%clk 0:00:23.9]} 74... Rxe8+ {[%clk 0:00:30.4]} 75. Kxe8
{[%clk 0:00:25.8]} 1/2-1/2

[Event "*** Titled Tuesday Blitz"]
[Site "Chess.com"]
[Date "2019.05.07"]
[Round "8"]
[White "SaraciNderim"]
[Black "rasmussvane"]
[Result "1-0"]
[WhiteElo "2753"]
[BlackElo "2792"]
[TimeControl "180+2"]
[EndTime "14:56:16 PDT"]
[Termination "SaraciNderim won by resignation"]

1. d4 {[%clk 0:03:01.8]} 1... e6 {[%clk 0:02:59.6]} 2. c4 {[%clk 0:03:02.1]}
2... b6 {[%clk 0:03:00.9]} 3. Nf3 {[%clk 0:03:03.2]} 3... Bb7 {[%clk 0:03:02]}
4. g3 {[%clk 0:03:04.5]} 4... Bxf3 {[%clk 0:03:00.6]} 5. exf3 {[%clk 0:03:06.4]}
5... Bb4+ {[%clk 0:03:02.2]} 6. Bd2 {[%clk 0:03:05.8]} 6... Bxd2+ {[%clk
0:03:03.3]} 7. Qxd2 {[%clk 0:03:07.7]} 7... Nf6 {[%clk 0:03:03.6]} 8. Bg2 {[%clk
0:03:08]} 8... d5 {[%clk 0:03:04.4]} 9. f4 {[%clk 0:03:08.9]} 9... c6 {[%clk
0:03:05.4]} 10. b3 {[%clk 0:03:09.4]} 10... O-O {[%clk 0:03:06.4]} 11. O-O
{[%clk 0:03:10.3]} 11... a5 {[%clk 0:03:07.8]} 12. Nc3 {[%clk 0:03:11.3]} 12...
Ra7 {[%clk 0:03:09.2]} 13. Rac1 {[%clk 0:03:11.3]} 13... Rd7 {[%clk 0:03:10.2]}
14. Rfd1 {[%clk 0:03:12.2]} 14... Qe7 {[%clk 0:03:09.2]} 15. Na4 {[%clk
0:03:13.1]} 15... Rb7 {[%clk 0:03:02.9]} 16. Bf3 {[%clk 0:03:05.7]} 16... Rd8
{[%clk 0:03:03]} 17. Kg2 {[%clk 0:03:06]} 17... Na6 {[%clk 0:02:49.9]} 18. c5
{[%clk 0:03:01.9]} 18... b5 {[%clk 0:02:48.9]} 19. Nb6 {[%clk 0:03:02.8]} 19...
b4 {[%clk 0:02:47.9]} 20. a3 {[%clk 0:03:03.2]} 20... Nd7 {[%clk 0:02:37.1]} 21.
Nxd7 {[%clk 0:03:01.2]} 21... Qxd7 {[%clk 0:02:35.9]} 22. Ra1 {[%clk 0:03:02.1]}
22... Qc7 {[%clk 0:02:24.7]} 23. Be2 {[%clk 0:03:00.5]} 23... Nb8 {[%clk
0:02:21.4]} 24. axb4 {[%clk 0:02:58.7]} 24... Rxb4 {[%clk 0:02:22]} 25. Ra3
{[%clk 0:02:58.1]} 25... Nd7 {[%clk 0:02:22.6]} 26. Rda1 {[%clk 0:02:57.9]}
26... Nf6 {[%clk 0:02:21]} 27. Bd1 {[%clk 0:02:54]} 27... Ne4 {[%clk 0:02:15]}
28. Qe3 {[%clk 0:02:54.8]} 28... Ra8 {[%clk 0:02:14]} 29. f3 {[%clk 0:02:52.2]}
29... Nf6 {[%clk 0:02:13.9]} 30. Qc3 {[%clk 0:02:53]} 30... Rab8 {[%clk
0:01:52.2]} 31. Rxa5 {[%clk 0:02:52.2]} 31... h6 {[%clk 0:01:50.8]} 32. Ra7
{[%clk 0:02:51.9]} 32... Qd8 {[%clk 0:01:50]} 33. R1a6 {[%clk 0:02:48.3]} 33...
Qc8 {[%clk 0:01:48.4]} 34. Bc2 {[%clk 0:02:46.7]} 34... R4b5 {[%clk 0:01:28.2]}
35. Ra2 {[%clk 0:02:44.6]} 35... R5b7 {[%clk 0:01:14.8]} 36. R7a6 {[%clk
0:02:44.3]} 36... Rb5 {[%clk 0:01:14.3]} 37. R2a3 {[%clk 0:02:45]} 37... R5b7
{[%clk 0:01:14.7]} 38. g4 {[%clk 0:02:41.9]} 38... Ne8 {[%clk 0:01:12.3]} 39.
Qd3 {[%clk 0:02:41]} 39... g6 {[%clk 0:01:04.6]} 40. h4 {[%clk 0:02:41.8]} 40...
Nf6 {[%clk 0:01:05.9]} 41. Kg3 {[%clk 0:02:37.7]} 41... h5 {[%clk 0:01:06.2]}
42. Qe3 {[%clk 0:02:30]} 42... hxg4 {[%clk 0:01:06.7]} 43. fxg4 {[%clk
0:02:31.1]} 43... Ne4+ {[%clk 0:01:07.1]} 44. Bxe4 {[%clk 0:02:31.4]} 44... dxe4
{[%clk 0:01:09]} 45. R6a4 {[%clk 0:02:06.8]} 45... Qd7 {[%clk 0:01:09.5]} 46. b4
{[%clk 0:01:31.2]} 46... Qd5 {[%clk 0:01:05.8]} 47. Rb3 {[%clk 0:01:31.9]} 47...
Rb5 {[%clk 0:00:59.3]} 48. Rb2 {[%clk 0:01:31.3]} 48... Rd8 {[%clk 0:00:55.7]}
49. Ra6 {[%clk 0:01:21.8]} 49... Rdb8 {[%clk 0:00:52.2]} 50. Qc3 {[%clk
0:01:19.7]} 50... e3 {[%clk 0:00:51.2]} 51. Ra1 {[%clk 0:01:04.6]} 51... f5
{[%clk 0:00:25.4]} 52. Rab1 {[%clk 0:00:59.1]} 52... fxg4 {[%clk 0:00:25.9]} 53.
Qxe3 {[%clk 0:00:59.3]} 53... Qf5 {[%clk 0:00:21.9]} 54. Qe5 {[%clk 0:00:56.9]}
54... Kf7 {[%clk 0:00:21.8]} 55. Qc7+ {[%clk 0:00:55.5]} 55... Kf6 {[%clk
0:00:20.1]} 56. Qe5+ {[%clk 0:00:52.3]} 56... Kf7 {[%clk 0:00:21.1]} 57. Ra1
{[%clk 0:00:46.8]} 57... Qxe5 {[%clk 0:00:18]} 58. dxe5 {[%clk 0:00:46.1]} 58...
Rxb4 {[%clk 0:00:19.6]} 59. Ra7+ {[%clk 0:00:47.4]} 59... Kg8 {[%clk 0:00:20.3]}
60. Rxb4 {[%clk 0:00:48.3]} 60... Rxb4 {[%clk 0:00:21.1]} 61. Re7 {[%clk
0:00:47.3]} 61... Rc4 {[%clk 0:00:21.4]} 62. Rxe6 {[%clk 0:00:48.6]} 62... Rxc5
{[%clk 0:00:22]} 63. Rxg6+ {[%clk 0:00:49.7]} 63... Kf7 {[%clk 0:00:23.7]} 64.
Rd6 {[%clk 0:00:50.1]} 64... Rc1 {[%clk 0:00:25.6]} 65. Kxg4 {[%clk 0:00:51.2]}
65... c5 {[%clk 0:00:26.9]} 66. Rc6 {[%clk 0:00:52.1]} 66... c4 {[%clk
0:00:27.8]} 67. Kf5 {[%clk 0:00:53.2]} 67... c3 {[%clk 0:00:29.4]} 68. Rc7+
{[%clk 0:00:54]} 68... Ke8 {[%clk 0:00:30.2]} 69. Ke6 {[%clk 0:00:55.2]} 69...
Kd8 {[%clk 0:00:31.8]} 70. Rc4 {[%clk 0:00:55.5]} 70... c2 {[%clk 0:00:29]} 71.
f5 {[%clk 0:00:56.5]} 71... Rh1 {[%clk 0:00:29.1]} 72. Rxc2 {[%clk 0:00:56.3]}
72... Rxh4 {[%clk 0:00:30.6]} 73. f6 {[%clk 0:00:57.5]} 73... Rh8 {[%clk
0:00:30]} 74. Ra2 {[%clk 0:00:54.7]} 74... Kc7 {[%clk 0:00:28.6]} 75. f7 {[%clk
0:00:54.8]} 75... Rd8 {[%clk 0:00:25]} 76. Ra7+ {[%clk 0:00:51.7]} 76... Kb6
{[%clk 0:00:26.1]} 77. Rd7 {[%clk 0:00:52.6]} 77... Rh8 {[%clk 0:00:26.6]} 78.
Ke7 {[%clk 0:00:53.6]} 78... Kc6 {[%clk 0:00:27.8]} 79. Rd6+ {[%clk 0:00:54.5]}
79... Kc7 {[%clk 0:00:28.8]} 80. f8=Q {[%clk 0:00:56.4]} 80... Rh7+ {[%clk
0:00:30.1]} 81. Ke6 {[%clk 0:00:53.8]} 1-0